Cogmind - Beta 14 @@@ ROGUE MODE // 2024.11.13 @ 17:18:11 Player: Knjet Result: Destroyed by P-70 Sage with Tesla Rifle Performance ------------- Evolutions (3) 1500 Regions Visited (4) 800 Robots Destroyed (54) 270 Value Destroyed (1652) 1652 Prototype IDs (1) 20 Alien Tech Used (0) 0 Bonus (0) 0 TOTAL SCORE: 4242 Bonus ------- None Cogmind --------- Core Integrity 0/700 Matter 218/300 Energy 99/100 System Corruption 4% Temperature Cool (0) Movement Rolling (90) Location -7/Factory Parts ------- > --- POWER (1) -------- (None) > --- PROPULSION (5) --- Armored Wheel > --- UTILITY (4) ------ (None) > --- WEAPON (3) ------- (None) > --- INVENTORY (5) ---- Advanced Terrain Scan Processor Improved Targeting Computer Light Armor Plating Reactive Plating Hacking Suite Peak State ------------ > --- POWER ------------ Light Nuclear Core > --- PROPULSION ------- Aluminum Leg Aluminum Leg Aluminum Leg Aluminum Leg Carbon-fiber Leg > --- UTILITY ---------- Coolant Injector High-capacity Storage Unit Seismic Detector Medium Armor Plating > --- WEAPON ----------- Gatling Laser Minigun Minigun > --- INVENTORY -------- Light Deuterium Engine Aluminum Leg Aluminum Leg Aluminum Leg Heat Sink Improved Sensor Array Terrain Scan Processor Advanced Terrain Scan Processor Targeting Computer Improved Targeting Computer Light Armor Plating Medium Armor Plating Reactive Plating Hacking Suite Heavy Laser High-powered Shotgun Gauss Rifle EMP Blaster Remote Datajack Mining Laser [Rating: 32] Favorites ----------- Power Ion Engine Engine Ion Engine Power Core Light Nuclear Core Propulsion Aluminum Leg Treads Light Treads Leg Aluminum Leg Wheel Armored Wheel Utility High-capacity Storage Unit Device Seismic Detector Storage High-capacity Storage Unit Processor Signal Interpreter Protection Core Shielding Weapon Medium Laser Energy Gun Medium Laser Ballistic Gun Minigun Launcher EMP Blaster Special Weapon Remote Datajack Build | -11 -10 -9 -8 -7 ------- Run | Yrd Mat Mat Mat Fac Slots Evolved 6 | . . 2 2 2 Power . | . . . . . Propulsion 3 | . . 2 . 1 Utility 2 | . . . 1 1 Weapon 1 | . . . 1 . Parts Attached 49 | 7 2 9 9 22 Power 4 | 1 . 1 1 1 Engine 3 | 1 . 1 . 1 Core 1 | . . . 1 . Reactor . | . . . . . Propulsion 15 | 2 . 6 1 6 Treads 2 | 2 . . . . Leg 12 | . . 6 1 5 Wheel 1 | . . . . 1 Hover . | . . . . . Flight . | . . . . . Utility 11 | 2 1 1 2 5 Device 5 | 1 . . 1 3 Storage 2 | 1 . 1 . . Processor 1 | . . . . 1 Hackware . | . . . . . Protection 3 | . 1 . 1 1 Artifact . | . . . . . Weapon 19 | 2 1 1 5 10 Energy Gun 12 | 2 1 1 2 6 Energy Cannon . | . . . . . Ballistic Gun 4 | . . . 2 2 Ballistic Cannon . | . . . . . Launcher 1 | . . . . 1 Special Weapon 2 | . . . 1 1 Impact Weapon . | . . . . . Slashing Weapon . | . . . . . Piercing Weapon . | . . . . . Special Melee Weapon . | . . . . . Unidentified Prototypes 1 | . . . 1 . Parts Lost 32 | . 2 4 1 25 Power 3 | . . 1 . 2 Propulsion 11 | . . 2 . 9 Utility 7 | . 1 . . 6 Weapon 11 | . 1 1 1 8 Highest Loss Streak 14 | . 1 3 1 14 To Critical Strikes 1 | . . . . 1 Average Slot Usage (%) 92 | . 96 94 98 78 Engine 6 | . 14 9 3 . Core 2 | . . . 5 4 Treads 6 | . 28 . . . Leg 27 | . . 40 35 28 Device 5 | . 4 . 8 7 Storage 9 | . 14 11 9 6 Protection 8 | . 8 11 9 5 Energy Gun 18 | . 26 22 20 6 Ballistic Gun 4 | . . . 5 12 Peak Build Rating 32 | 9 9 14 25 32 Average Rating 16 | 5 7 10 21 24 On Entrance 11 | . 9 7 14 25 Naked Turns 16 | . . . . 16 Heaviest Build 64 | 15 15 51 62 64 Greatest Support 55 | 40 40 40 45 55 Greatest Overweight (x) 16 | . . 4 1 16 Average Overweight (x) . | . . . 1 1 Largest Inventory Capacity 20 | 8 8 20 20 20 Average Capacity 16 | 7 8 18 20 18 Most Carried 20 | 4 8 19 20 20 Average Carried 13 | 2 6 12 19 17 Final Capacity 20 | 8 8 20 20 5 Final Carried 20 | 4 8 18 20 5 Class Distribution -------------------- 52% | Mutant 33% | Scavenger-Tank 11% | Tank Dominant Class ---------------- Mutant | -10/Materials Mutant | -9/Materials Scavenger-Tank | -8/Materials Scavenger-Tank | -7/Factory Resources | -11 -10 -9 -8 -7 ----------- Run | Yrd Mat Mat Mat Fac Matter Collected 814 | 270 16 85 164 279 Remotely . | . . . . . Salvage Created 2164 | 142 370 553 629 470 Parts 116 | 11 20 28 28 29 Haulers Intercepted 1 | . 1 . . . Recyclers Shooed 1 | . . . . 1 Parts Field Recycled . | . . . . . Retrieved Matter . | . . . . . Parts Self-Destructed . | . . . . . Prevented . | . . . . . Kills | -11 -10 -9 -8 -7 ------- Run | Yrd Mat Mat Mat Fac Combat Hostiles Destroyed 44 | . 12 11 10 11 Guns 42 | . 10 11 10 11 AOE 1 | . 1 . . . Classes Destroyed 10 | 3 3 3 1 . Worker 2 | 2 . . . . Tunneler 1 | 1 . . . . Hauler 1 | . 1 . . . Recycler 3 | 1 . . 1 1 Watcher 3 | . . 2 . 1 Swarmer 14 | . 6 . . 8 Grunt 18 | . 6 6 5 1 Brawler 1 | . . 1 . . Sentry 8 | . . 4 3 1 Hunter 3 | . . . 2 1 Best Kill Streak 4 | 2 3 2 2 4 Combat Bots Only 4 | . 3 2 2 4 Max Kills in Single Turn 2 | 1 1 1 1 2 Gunslinging . | . . . . . Exploded 1 | . 1 . . . Melee . | . . . . . Uniques/NPCs Destroyed . | . . . . . Combat | -11 -10 -9 -8 -7 -------- Run | Yrd Mat Mat Mat Fac Hostile Shots Fired 483 | . 53 48 36 346 Missed 159 | . 18 9 9 123 Damage Taken 4294 | . 362 563 412 2957 Core 956 | . 52 125 74 705 Absorbed by Shields . | . . . . . Redirected to Shielding 47 | . 4 27 16 . Core Remaining (%) 83 | 100 79 68 86 . Volleys Fired 162 | 7 34 40 33 48 Largest 3 | 2 2 2 3 3 Hottest 151 | 90 100 100 151 149 Shots Fired 325 | 14 65 75 84 87 Gun 313 | 14 65 75 77 82 Cannon . | . . . . . Launcher 2 | . . . . 2 Special 10 | . . . 7 3 Kinetic 73 | . . . 16 57 Thermal 217 | 7 63 67 55 25 Explosive . | . . . . . Electromagnetic 32 | 7 2 8 13 2 Robot Hit Streak 16 | 5 6 8 16 11 Robot Miss Streak 6 | 2 3 2 3 6 Penetration Max 1 | . . . . 1 Secondary Targets 2 | . . . 1 1 Max Gunslinging Chain 1 | . . . 1 1 Shots Hit Robots 210 | 7 43 50 50 60 Core Hits 109 | 5 19 25 26 34 Critical Kills . | . . . . . Critical Parts Destroyed . | . . . . . Critical Strikes 18 | 1 5 7 5 . Burn 18 | 1 5 7 5 . Melee Attacks . | . . . . . Impact . | . . . . . Slashing . | . . . . . Piercing . | . . . . . Sneak Attacks . | . . . . . Combat Hostiles . | . . . . . Follow-up Attacks . | . . . . . Damage Inflicted 3272 | 89 610 678 718 1177 Guns 3117 | 89 551 648 718 1111 Cannons . | . . . . . Explosions 150 | . 55 30 . 65 Melee . | . . . . . Ramming 5 | . 4 . . 1 Kinetic 835 | . . . 152 683 Thermal 2027 | 25 596 572 406 428 Explosive . | . . . . . Electromagnetic 405 | 64 10 106 160 65 Impact . | . . . . . Slashing . | . . . . . Piercing . | . . . . . Highest Corruption 4 | . . 1 . 4 Average Corruption 1 | . . 1 . 3 Corruption Purged . | . . . . . Corruption Blocked . | . . . . . Effects 10 | . . 8 . 2 Message Errors 3 | . . 3 . . Matter Fused 2 | . . 1 . 1 Heat Flow Errors 2 | . . 2 . . Data Loss (major) 1 | . . . . 1 Alerts 2 | . . 2 . . Overload Shots . | . . . . . Overflow Damage 41 | . 2 39 . . Projectiles . | . . . . . Explosions 41 | . 2 39 . . Melee . | . . . . . Knockbacks . | . . . . . Impact . | . . . . . Kinetic . | . . . . . Secondary . | . . . . . Self-Inflicted Damage 82 | . 37 45 . . Shots 2 | . 1 1 . . Rammed 2 | . 2 . . . Targets Rammed 4 | . 2 1 . 1 Kicked 2 | . . 1 . 1 Crushed . | . . . . . Highest Temperature 275 | 60 221 238 275 173 Average Temperature 76 | 29 78 79 86 58 Received Heat Transfer 798 | . 96 210 117 375 Effects 3 | . . 1 2 . Energy Bleed 2 | . . . 2 . Interference 1 | . . 1 . . Siege Activations . | . . . . . Robots Corrupted . | . . . . . Combat Hostiles . | . . . . . Parts Fried . | . . . . . Impact Corruptions . | . . . . . Robots Melted 1 | . 1 . . . Combat Hostiles 1 | . 1 . . . Parts Melted 19 | . 8 6 4 1 Heat Transferred 6646 | 148 2061 2159 1406 872 Parts Sabotaged . | . . . . . Parts Stolen . | . . . . . Parts Stripped . | . . . . . Power Chain Reactions 2 | . 1 1 . . Alert | -11 -10 -9 -8 -7 ------- Run | Yrd Mat Mat Mat Fac Peak Influence 230 | 20 230 140 185 187 Initial 52 | . 13 20 52 47 Average 76 | 6 95 79 83 59 Maximum Alert Level 1 | . 1 . . . Low Security (%) 98 | 100 93 100 100 100 Level 1 1 | . 6 . . . Level 2 . | . . . . . Level 3 . | . . . . . Level 4 . | . . . . . Level 5 . | . . . . . High Security . | . . . . . Max Security . | . . . . . Squads Dispatched 10 | . 3 3 2 2 Investigation 3 | . 1 1 1 . Extermination 1 | . . . . 1 Reinforcement 6 | . 2 2 1 1 Assault . | . . . . . Garrison . | . . . . . Intercept . | . . . . . Searches Triggered . | . . . . . Construction Impeded . | . . . . . Haulers Reinforced . | . . . . . Active Scanning Responses . | . . . . . Cargo Convoy Interrupts . | . . . . . Stealth | -11 -10 -9 -8 -7 --------- Run | Yrd Mat Mat Mat Fac Distress Signals 4 | . 1 1 . 2 Communications Jammed . | . . . . . Distress Signals . | . . . . . Times Spotted 78 | . 18 19 12 29 Peak Tracking Total 9 | . 5 5 2 9 Tactical Retreats 9 | . 3 1 . 5 Traps | -11 -10 -9 -8 -7 ------- Run | Yrd Mat Mat Mat Fac Traps Triggered 1 | . 1 . . . Indirectly . | . . . . . Trap Hack Attempts . | . . . . . Triggered . | . . . . . Disarmed . | . . . . . Reprogrammed . | . . . . . Reused . | . . . . . Traps Extracted . | . . . . . Installed . | . . . . . Triggered . | . . . . . Machines | -11 -10 -9 -8 -7 ---------- Run | Yrd Mat Mat Mat Fac Machines Disabled 3 | . . . 2 1 Max in Single Turn 1 | . . . 1 1 Machines Repaired . | . . . . . Machines Dismantled . | . . . . . Machines Sabotaged . | . . . . . Overloaded Fab Kills . | . . . . . Hacking | -11 -10 -9 -8 -7 --------- Run | Yrd Mat Mat Mat Fac Machines Accessed 10 | . 3 2 4 1 Terminals 10 | . 3 2 4 1 Fabricators . | . . . . . Repair Stations . | . . . . . Recycling Units . | . . . . . Scanalyzers . | . . . . . Garrison Access . | . . . . . Total Hacks 21 | . 6 5 9 1 Successful 10 | . 4 1 5 . Failed 11 | . 2 4 4 1 Catastrophic 1 | . . 1 . . Database Lockouts . | . . . . . Manual 3 | . . 1 1 1 Terminals 21 | . 6 5 9 1 Fabricators . | . . . . . Repair Stations . | . . . . . Recycling Units . | . . . . . Scanalyzers . | . . . . . Garrison Access . | . . . . . Terminal Hacks 10 | . 4 1 5 . Record 2 | . . . 2 . Robot Analysis 1 | . . . 1 . Level Access Points 1 | . . . 1 . Emergency Access Points 1 | . 1 . . . Alert Level 2 | . . 1 1 . Locate Traps 1 | . 1 . . . Dispatch Records 1 | . 1 . . . Hauler Manifests 1 | . 1 . . . Fabricator Hacks . | . . . . . Repair Station Hacks . | . . . . . Recycling Unit Hacks . | . . . . . Scanalyzer . | . . . . . Garrison Access Hacks . | . . . . . Unauthorized Hacks . | . . . . . Terminals . | . . . . . Fabricators . | . . . . . Repair Stations . | . . . . . Recycling Units . | . . . . . Scanalyzers . | . . . . . Garrison Access . | . . . . . Data Cores Recovered . | . . . . . Used . | . . . . . Hacking Detections 6 | . 1 2 2 1 Full Trace Events 2 | . . 1 1 . Feedback Events 1 | . . 1 . . Corruption 1 | . . 1 . . Feedback Blocked . | . . . . . Robot Schematics Acquired . | . . . . . Robots Built . | . . . . . Authchips . | . . . . . Time . | . . . . . Total Robot Build Rating . | . . . . . Part Schematics Acquired . | . . . . . Parts Built . | . . . . . Authchips . | . . . . . Time . | . . . . . Total Part Build Rating . | . . . . . Parts Repaired . | . . . . . Time . | . . . . . Parts Recycled . | . . . . . Recycled Matter . | . . . . . Retrieved Matter . | . . . . . Retrieved Components . | . . . . . Parts Scanalyzed . | . . . . . Part Schematics Acquired . | . . . . . Parts Damaged . | . . . . . Bothacking | -11 -10 -9 -8 -7 ------------ Run | Yrd Mat Mat Mat Fac Used RIF Installer . | . . . . . Robots Hacked 1 | . . . . 1 Non-combat . | . . . . . Combat 1 | . . . . 1 Robot Hacks Applied 1 | . . . . 1 parse_system 1 | . . . . 1 Relay Couplers Released . | . . . . . Fabnet Peak Effective % . | . . . . . Robots Rewired . | . . . . . Allies Hacked . | . . . . . Hacks Repelled . | . . . . . Allies | -11 -10 -9 -8 -7 -------- Run | Yrd Mat Mat Mat Fac Total Allies . | . . . . . Largest Group . | . . . . . Highest-Rated Group . | . . . . . Highest-Rated Ally . | . . . . . Total Orders . | . . . . . Ally Attacks . | . . . . . Total Damage . | . . . . . Kills . | . . . . . Allies Corrupted . | . . . . . Allies Melted . | . . . . . Intel | -11 -10 -9 -8 -7 ------- Run | Yrd Mat Mat Mat Fac Robot Analysis Total 1 | . . . 1 . Derelict Logs Recovered . | . . . . . Drone Launches . | . . . . . Drone Recoveries . | . . . . . Exploration | -11 -10 -9 -8 -7 ------------- Run | Yrd Mat Mat Mat Fac Turns Passed 4100 | 159 872 959 1143 967 Spaces Moved 1839 | 80 426 422 510 401 Core 53 | 3 . 8 . 42 Treads 513 | 77 426 10 . . Legs 1251 | . . 404 510 337 Wheels 22 | . . . . 22 Hover . | . . . . . Flight . | . . . . . Fastest Speed 50 | 50 160 120 190 50 Average Speed 176 | 155 160 179 190 178 Slowest Speed 850 | 160 160 250 190 850 Overloaded Moves . | . . . . . Propulsion Burnouts . | . . . . . Robots Hopped . | . . . . . Cave-ins Triggered . | . . . . . Exploration Rate (%) 34 | 7 74 35 44 13 Regions Visited 4 Branch Regions . Pre-discovered Areas . | . . . . . Known Exits Taken 1 | . . . 1 . Unknown Exits Taken 3 | 1 1 1 . . Scrap Searched . | . . . . . Spaces Dug 6 | . . . 6 . Terrain Destroyed 15 | . 6 2 6 1 Melee . | . . . . . Projectile 7 | . . . 6 1 AOE 8 | . 6 2 . . Terrain Rammed . | . . . . . Walls Destroyed . | . . . . . Machines Disabled . | . . . . . Actions | -11 -10 -9 -8 -7 --------- Run | Yrd Mat Mat Mat Fac Total 2383 | 97 550 550 609 577 Wait 276 | . 82 59 42 93 Move 1835 | 79 425 421 509 401 Hop . | . . . . . Pick Up 37 | 4 5 17 8 3 Fast Attach 20 | 7 1 2 3 7 Attach 24 | . 1 6 3 14 Detach 4 | . . . 1 3 Swap 5 | . . 1 3 1 Drop 16 | . . 3 7 6 Fire 162 | 7 34 40 33 48 Melee . | . . . . . Ram . | . . . . . Kick 2 | . . 1 . 1 Crush 2 | . 2 . . . Escape Stasis . | . . . . . Rewire . | . . . . . Trap . | . . . . . Miscellaneous . | . . . . . Route ------- -11/Scrapyard -10/Materials (discovered 2 exits: *Mat x2) -9/Materials -8/Materials (discovered 3 exits: *Fac x3) -7/Factory History --------- Turn | Location | Event 14 | -11/Scrapyard | Discovered new exit (range 14) 160 | -11/Scrapyard | Entered Materials 313 | -10/Materials | Build established: Mutant 605 | -10/Materials | Discovered new exit (range 15) 931 | -10/Materials | Discovered new exit (range 16) 1032 | -10/Materials | Entered another Materials area 1032 | -9/Materials | Evolved 2 slots: Propulsion x2 1672 | -9/Materials | Lost 3 parts (1p1n1w) 1932 | -9/Materials | Discovered new exit (range 16) 1991 | -9/Materials | Entered another Materials area 1991 | -8/Materials | Evolved 2 slots: Utility x1, Weapon x1 2290 | -8/Materials | Build established: Tank 2672 | -8/Materials | Identified exit to Factory 2772 | -8/Materials | Build established: Scavenger-Tank 3134 | -8/Materials | Entered Factory 3134 | -7/Factory | Evolved 2 slots: Propulsion x1, Utility x1 3891 | -7/Factory | Lost 11 parts (1p5n2u3w) 3939 | -7/Factory | Core integrity fell below 50% 4063 | -7/Factory | Core integrity fell below 20% 4094 | -7/Factory | Lost 14 parts (1p4n4u5w) 4101 | -7/Factory | Destroyed by P-70 Sage with Tesla Rifle Last Messages --------------- 04034_ Subcomponent Replicator disabled. 04034_ Aluminum Leg destroyed. 04049_ Heat Sink destroyed. 04052_ System corrupted: Matter fused (-8). 04056_ M-13 Machinist repairs P-60 Hacker. 04056_ Imp. Sensor Array destroyed. 04057_ Dropped Gatling Laser. 04058_ P-60 Hacker heat short circuits Imp. Heat Sink. 04058_ M-13 Machinist repairs Shock Rifle. 04058_ P-60 Hacker resets G-50 Soldier, system corruption cleaned. 04059_ T-07 Excavator destroyed. 04063_ Gatling Laser destroyed. 04064_ Dropped Remote Datajack. 04065_ P-60 Hacker heat damages core (-11). 04066_ P-60 Hacker heat damages core (-9). 04076_ System corrupted: Substantial component data lost. 04080_ Acquired Arm. Wheel. Map ----- +----------------------------------------------------+ | ?????????????????????????????????????????????????? | | ?????????????????????????????????????????????????? | | ?????????????????????????????????????????????????? | | ?????????????????????????????????????????????????? | | ?????????????????????????????????????????????????? | | ?????????????????????????????????????????????????? | | ?????????????????????????????????????????????????? | | ?????????????????????????????????????????????????? | | ?????????????????????????????????????????????????? | | ?????????????????????????????????????????????????? | | ?????????????????????????????????????????????????? | | ???????????????####???#??????????????????????????? | | ??????????????# ??? ??????????????????????????? | | ??????????????# "??" ""????????????????????????? | | ????????????#! "?"" ""????????????????????????? | | ????????????# """" """ ?#????????????????????? | | ????????????# """" !#????????????????????? | | ????????????# #????????????????????? | | ????????????# """" """" #????????????????????? | | ????????????# """" """" #????????????????????? | | ????????????# """" """" #????????????????????? | | ###?????????# """" """" #????????????????????? | | #?????????# #????????????????????? | | #?????????# ] #????????????????????? | | T ###########/#####+##/###????????????????????? | | "" s pp @#??????????????????????? | | ############## #??????????????????????? | | #????????????# #??????????????????????? | | #????????????# #??????????????????????? | | ##????????????# #??????????????????????? | | ########??????# #??????????????????????? | | #??????# #??????????????????????? | | #??????# #??????????????????????? | | *** #??????# #??????????????????????? | | *** #??????# #??????????????????????? | | ** ^ #??????# #??????????????????????? | | !! #??????# #??????????????????????? | | !! #??????# #??????????????????????? | | ![ #??????+ ???????????????????????? | | #????????? ???????????????????????? | | #??????????? ???????????????????????? | | ###### #?????????????????????????????????????? | | ?????# #?????????????????????????????????????? | | ###### #?????????????????????????????????????? | | # % ####### ???????????????????????????? | | #% = ????????????????????????? | | "" !/% *% ????????????????????????? | | "" #= = ????????????????????????? | | "" # % ?????????????????????????? | | " " # ?????????????????????????? | +----------------------------------------------------+ Best States ------------- Heat Dissipation 44 Coolant Potential 65 Energy Generation 14 Energy Capacity 250 Matter Stores 300 Matter Capacity 300 Sight Range 16 Robot Scan Range 15 Terrain Scan Range 16 Terrain Scan Density 10 Armor Coverage 225 Core Shielding 20 Evasion (%) 55 Recoil Reduction 2 Item Schematics ----------------- None Robot Schematics ------------------ None Fabricated ------------ Nothing Alien Tech Used ----------------- None Achievements -------------- None Challenges ------------ None Game ------ Seed MappingFusionGravjet Manual? 0 Play Time 00:43:01 Cumulative 28.4 hours Start 2024.11.13 @ 16:33:15 End 2024.11.13 @ 17:18:11 Sessions 1 Manual Loads 0 Difficulty Rogue Special Mode None Game No. 54 Rogue 54 Adventurer 0 Explorer 0 Win Type - Total 0 Types 0/0/0/0/0/0/0/0/0 Lore% 12 Gallery% 26 Achievement% 23 Wizard Run 0 Options --------- Layout 2 ASCII 0 Keyboard 1 Movement Numpad Keybinds 0 Fullscreen 1 Font 32/SmallcapsGlow Map View 50x44 Zoom Use 0% Tactical HUD 1 Map Filters NONE Filters NONE Steam 1 RUN: d7154521-de7b-4919-b9ac-9b344d89c77d